bitfinex-derivatives/quotes_ETHF0:USTF0_20240922
["timestamp","ask_amount","ask_price","bid_price","bid_amount"]
[1727011624245,1.52415992,2583.2,2583.1,0.38707]
[1727011624451,1.52415992,2583.2,2583.1,5.41434067]
[1727011624653,1.52415992,2583.2,2583.1,6.38202067]
[1727011625356,1.52415992,2583.3,2583.2,0.38705]
[1727011625655,1.52415992,2583.3,2583.2,1.41469537]
[1727011626044,1.71774814,2583.3,2583.2,1.41469537]
[1727011626245,1.52415992,2583.3,2583.2,1.41469537]
[1727011627250,1.52415992,2583.3,2583.2,0.38705]
[1727011628247,1.71775212,2583.4,2583.3,0.38704]
[1727011628449,0.19359181,2583.4,2583.3,0.38704]
[1727011628956,1.52051497,2583.4,2583.3,0.38704]
[1727011629153,1.71406162,2583.4,2583.3,0.38704]
[1727011630355,1.52046981,2583.4,2583.3,0.38704]
[1727011630554,1.71406225,2583.4,2583.3,0.38704]
[1727011630760,1.52046981,2583.4,2583.3,0.38704]
[1727011634457,1.89756981,2583.5,2583.4,0.38702]
[1727011634751,2.09116177,2583.5,2583.4,0.38702]
[1727011635352,1.89756981,2583.5,2583.4,0.38702]
[1727011635554,2.09115991,2583.5,2583.4,0.38702]
[1727011635954,1.89756981,2583.5,2583.4,0.38702]
[1727011636657,2.09116231,2583.5,2583.4,0.38702]
[1727011637167,1.89756981,2583.5,2583.4,0.38702]
[1727011638657,0.3771,2583.5,2583.4,0.38702]
[1727011653875,4.63451,2583.5,2583.3,0.38703]
[1727011654075,1.89756981,2583.5,2583.1,2.549]
[1727011654277,2.28457981,2583.5,2583.3,0.38703]
[1727011655072,2.28457981,2583.5,2583.4,0.38702]
[1727011655479,6.15497981,2583.5,2583.4,0.38702]
[1727011656387,6.34857468,2583.5,2583.4,0.38702]
[1727011656676,6.15497981,2583.5,2583.4,0.38702]
[1727011656877,5.76796981,2583.5,2583.4,0.38702]
[1727011657285,5.96156103,2583.5,2583.4,0.38702]
[1727011657582,5.76796981,2583.5,2583.4,0.38702]
[1727011658080,6.15497981,2583.5,2583.4,0.38702]
[1727011658282,6.15497981,2583.5,2583.2,0.38705]
[1727011658283,4.44109093,2583.5,2583.2,0.38705]
[1727011658475,3.2078,2583.3,2582.9,2.549]
[1727011658683,1.1356,2583.2,2582.9,2.549]
[1727011659585,1.1356,2583.2,2583.1,0.38706]
[1727011660379,2.65475009,2583.2,2583.1,0.38706]
[1727011661283,2.84836374,2583.2,2583.1,0.38706]
[1727011661477,2.65475009,2583.2,2583.1,0.38706]
[1727011662381,2.84836204,2583.2,2583.1,0.38706]
[1727011663678,1.32921195,2583.2,2583.1,0.38706]
[1727011664075,2.84970493,2583.2,2583.1,0.38706]
[1727011664388,3.36148204,2583.2,2583.1,0.38706]
[1727011664585,3.36148204,2583.2,2583.1,0.38707]
[1727011664883,1.32921195,2583.2,2583.1,0.38707]
[1727011665278,3.36148204,2583.2,2583.1,0.38707]
[1727011666379,3.36148323,2583.2,2583.1,0.38707]
[1727011668392,6.56928323,2583.2,2583.1,0.38707]
[1727011669391,4.53701314,2583.2,2583.1,0.38707]
[1727011669989,6.5667868,2583.2,2583.1,0.38707]
[1727011671387,6.56678665,2583.2,2583.1,0.38707]
[1727011676196,6.56678405,2583.2,2583.1,0.38707]
[1727011680796,6.56678395,2583.2,2583.1,0.38707]
[1727011681901,6.56678395,2583.2,2582.9,0.3737]
[1727011682091,1.71543831,2583.1,2583.0,1.41211587]
[1727011682605,1.71543831,2583.1,2583.0,0.9097531]
[1727011682804,1.71543831,2583.1,2583.0,1.41209464]
[1727011683297,1.71543831,2583.1,2583.0,1.41208921]
[1727011683492,1.71543831,2583.1,2583.0,1.41206877]
[1727011684505,1.71543949,2583.1,2583.0,1.41206877]
[1727011685202,1.71543949,2583.1,2583.0,0.90972438]
[1727011685396,1.71543949,2583.1,2583.0,1.41205172]
[1727011685701,1.71543949,2583.1,2583.0,0.90972438]
[1727011686000,1.71543949,2583.1,2583.0,0.90972224]
[1727011686196,1.71543949,2583.1,2583.0,1.4120591]
[1727011686405,1.71543949,2583.1,2583.0,0.90972224]
[1727011686599,1.71543949,2583.1,2583.0,1.41204627]
[1727011686898,1.71543949,2583.1,2583.0,0.90972224]
[1727011687306,1.71544041,2583.1,2583.0,1.4120749]
[1727011687499,1.71544785,2583.1,2583.0,1.41207502]
[1727011687700,0.19361147,2583.1,2583.0,0.90972224]
[1727011688307,0.58068147,2583.1,2583.0,0.52264224]
[1727011688604,16.24855282,2583.1,2582.4,5.07030485]
[1727011688798,16.24855282,2583.1,2582.4,4.67940485]
[1727011688799,3.59496,2582.5,2582.4,4.67940485]
[1727011688999,5.43109864,2582.5,2582.4,4.67940485]
[1727011689202,4.17471147,2582.5,2582.4,5.06657485]
[1727011689401,2.68693894,2582.5,2582.4,5.06657485]
[1727011689602,5.89473894,2582.5,2582.4,5.06657485]
[1727011690195,1.1652,2582.5,2582.4,5.58938615]
[1727011690599,1.1652,2582.5,2582.4,5.06657485]
[1727011691603,5.89473894,2582.5,2582.4,5.06657485]
[1727011691817,1.1652,2582.5,2582.4,5.06657485]
[1727011692104,4.373,2582.5,2582.4,5.06657485]
[1727011692497,5.89473894,2582.5,2582.4,5.06657485]
[1727011693101,4.373,2582.5,2582.4,5.06657485]
[1727011693505,5.89473894,2582.5,2582.4,5.06657485]
[1727011693796,4.373,2582.5,2582.4,0.38717]
[1727011699401,3.5997,2582.5,2582.4,0.38717]
[1727011699604,3.2078,2582.5,2582.4,0.38717]
[1727011702807,4.0005,2582.5,2582.4,0.38717]
[1727011706011,3.5981,2582.5,2582.4,0.38717]
[1727011716209,0.3903,2582.5,2582.4,0.38717]
[1727011729225,0.3903,2582.5,2582.4,0.90998834]
[1727011729423,1.91203894,2582.5,2582.4,0.38717]
[1727011729628,1.91203894,2582.5,2582.4,0.91000482]
[1727011729827,1.91203894,2582.5,2582.4,0.9100072]
[1727011730032,1.91203894,2582.5,2582.4,0.38717]
[1727011730233,1.91203894,2582.5,2582.4,0.91000812]
[1727011730733,2.10569567,2582.5,2582.4,0.38717]
[1727011731128,0.58395673,2582.5,2582.4,0.91029448]
[1727011732330,2.6136439,2582.5,2582.4,1.41331855]
[1727011732529,5.8214439,2582.5,2582.4,0.91029448]
[1727011733032,5.8214439,2582.5,2582.4,0.38717]
[1727011733236,3.79176975,2582.5,2582.4,0.91080974]
[1727011733429,3.79176975,2582.5,2582.4,1.41408111]
[1727011734237,8.24686162,2582.5,2582.4,1.41408111]
[1727011734430,5.03906162,2582.5,2582.4,1.41408111]
[1727011734633,5.03906162,2582.5,2582.4,2.25242767]
[1727011734827,8.24686162,2582.5,2582.4,1.41408111]
[1727011735332,8.24686162,2582.5,2582.4,0.91080974]
[1727011735529,8.24686162,2582.5,2582.4,1.41440993]
[1727011735729,8.24686162,2582.5,2582.4,2.2527353]
[1727011736035,8.24686162,2582.5,2582.4,1.41440993]
[1727011738232,8.24670434,2582.5,2582.4,1.41440993]
[1727011741042,8.24670434,2582.5,2582.4,0.38717]
[1727011741238,8.24670434,2582.5,2582.4,1.41469539]
[1727011741446,8.24670434,2582.5,2582.4,1.41469713]
[1727011741741,8.24662237,2582.5,2582.4,1.41469713]
[1727011744234,8.24662237,2582.5,2582.4,0.38717]
[1727011744552,8.24662237,2582.5,2582.4,1.41440635]
[1727011746138,8.24662237,2582.5,2582.4,1.41440273]
[1727011747742,8.24662237,2582.5,2582.4,1.41439316]
[1727011748242,8.24662237,2582.5,2582.4,0.91095472]
[1727011748437,8.24662237,2582.5,2582.4,1.4143763]
[1727011748945,8.24662237,2582.5,2582.4,1.41435832]
[1727011750647,8.63378237,2582.5,2582.4,1.41435832]
[1727011751040,8.63378237,2582.5,2582.4,0.8905736]
[1727011751243,6.09667341,2582.5,2582.4,1.41435447]
[1727011751439,8.63681755,2582.5,2582.4,1.41435306]
[1727011751746,8.24965755,2582.5,2582.4,1.41435306]
[1727011754847,8.24965755,2582.5,2582.4,0.89057219]
[1727011755155,8.24965755,2582.5,2582.4,0.38717]
[1727011756148,8.24954049,2582.5,2582.4,0.38717]
[1727011756349,8.24949929,2582.5,2582.4,0.91088521]
[1727011757148,8.24949929,2582.5,2582.4,0.8905188]
[1727011757651,8.24949929,2582.5,2582.4,0.38717]
[1727011757849,8.24949929,2582.5,2582.4,0.89052554]
[1727011758247,5.70921708,2582.5,2582.4,0.89052554]
[1727011758551,8.24949929,2582.5,2582.4,0.89052554]
[1727011758751,5.70921708,2582.5,2582.4,0.89052554]
[1727011759354,8.24949929,2582.5,2582.4,0.89052554]
[1727011759551,5.70921708,2582.5,2582.4,0.89052554]
[1727011759753,5.43340954,2582.5,2582.4,2.86965739]
[1727011760053,1.52389019,2582.5,2582.4,9.42714344]
[1727011760451,2.22558395,2582.7,2582.4,9.42714344]
[1727011760452,1.52389019,2582.6,2582.5,1.35506]
[1727011760643,1.52389019,2582.6,2582.5,4.72067561]
[1727011760840,1.52389019,2582.6,2582.5,8.08932007]
[1727011761044,1.52389019,2582.6,2582.5,9.80162085]
[1727011761246,1.52389019,2582.6,2582.5,11.17590502]
[1727011761453,2.22557999,2582.7,2582.6,0.38714]
[1727011761454,1.52389019,2582.7,2582.6,0.38714]
[1727011761645,1.71752172,2582.7,2582.6,8.77922808]
[1727011761851,1.71752172,2582.7,2582.6,13.15733735]
[1727011761852,1.52389019,2582.7,2582.6,13.15733735]
[1727011762052,1.52389019,2582.7,2582.6,13.66045502]
[1727011762451,1.52389019,2582.7,2582.6,13.15413139]
[1727011762857,1.52389019,2582.7,2582.6,12.1431127]
[1727011763058,4.73169019,2582.8,2582.7,0.38713]
[1727011763364,4.92531966,2582.8,2582.7,3.26225181]
[1727011763553,4.92531966,2582.8,2582.7,1.41371405]
[1727011764152,4.92531966,2582.8,2582.7,1.41303422]
[1727011765458,4.73169019,2582.8,2582.7,1.41303422]
[1727011767451,4.73169019,2582.8,2582.7,0.38713]
[1727011767656,4.73169019,2582.8,2582.7,0.90997142]
[1727011767962,1.52389019,2582.8,2582.7,1.41248953]
[1727011769154,1.52389019,2582.9,2582.8,0.38711]
[1727011769458,0.19362825,2582.9,2582.8,0.38711]
[1727011769760,2.03194353,2582.9,2582.6,2.8727]
[1727011769947,4.72955011,2582.8,2582.7,0.38713]
[1727011770148,5.29747836,2582.8,2582.7,0.38713]
[1727011770459,5.10385011,2582.8,2582.7,0.38713]
[1727011772060,1.89605011,2582.8,2582.7,0.38713]
[1727011773564,5.10385011,2582.8,2582.7,0.38713]
[1727011774663,1.89605011,2582.8,2582.7,0.38713]
[1727011783079,4.43994277,2582.8,2582.3,1.01099156]
[1727011783280,1.01420983,2582.4,2582.2,0.38719]
[1727011783473,2.14930983,2582.3,2582.2,0.38719]
[1727011783970,2.14930983,2582.3,2582.2,0.91018192]
[1727011784173,2.14930983,2582.3,2582.2,0.91018882]
[1727011784683,2.14930983,2582.3,2582.2,1.41283011]
[1727011784975,2.14930983,2582.3,2582.2,0.91018882]
[1727011787579,2.14930983,2582.3,2582.2,0.91024162]
[1727011789977,2.14930983,2582.3,2582.2,0.38719]
[1727011790483,2.14930983,2582.3,2582.2,0.91020705]
[1727011790683,2.14930983,2582.3,2582.2,0.38719]
[1727011790879,2.14930983,2582.3,2582.2,0.91020656]
[1727011791482,2.14930983,2582.3,2582.2,1.41286565]
[1727011793882,2.14930983,2582.3,2582.2,0.91020656]
[1727011794392,2.14930983,2582.3,2582.2,0.38719]
[1727011794584,2.14930983,2582.3,2582.2,0.91016377]
[1727011795792,2.14930983,2582.3,2582.2,0.38719]
[1727011797186,5.35710983,2582.3,2582.2,0.38719]
[1727011798387,9.93069629,2582.3,2581.8,2.52833388]
[1727011798596,3.59506,2581.9,2581.6,2.14618156]
[1727011798784,2.16396953,2581.8,2581.7,0.91049133]
[1727011799091,2.16396953,2581.8,2581.7,0.38728]
[1727011799293,2.67105429,2581.8,2581.7,0.38728]
[1727011799881,1.1498,2581.8,2581.7,0.38728]
[1727011800086,2.1637393,2581.8,2581.7,0.38728]
[1727011801487,4.2217393,2581.9,2581.8,0.38726]
[1727011801683,3.2078,2581.9,2581.8,0.38726]
[1727011802690,7.46785,2581.9,2581.6,1.01099156]
[1727011802892,1.7979393,2581.8,2581.5,0.3873]
[1727011803093,3.2078,2581.6,2581.5,0.3873]
[1727011804097,4.2217393,2581.6,2581.3,0.38733]
[1727011804298,4.2217393,2581.6,2581.4,0.38732]
[1727011804490,3.2078,2581.6,2581.5,0.38731]
[1727011811590,0.784,2581.8,2581.6,0.38728]
[1727011811799,3.2078,2581.7,2581.6,0.38728]
[1727011811998,0.784,2581.8,2581.6,0.38728]
[1727011814206,3.2078,2581.7,2581.6,0.38728]
[1727011815507,3.2078,2581.7,2581.5,0.3873]
[1727011815900,3.2078,2581.7,2581.3,0.38733]
[1727011815901,3.59508,2581.7,2581.3,0.38733]
[1727011816295,3.59508,2581.7,2581.2,3.6886]
[1727011816296,3.59508,2581.7,2581.4,0.38732]
[1727011816604,3.2078,2581.7,2581.2,3.6886]
[1727011816807,3.59509,2581.7,2581.4,0.38732]
[1727011817007,0.38732,2581.5,2581.2,0.38735]
[1727011817306,4.37023,2581.4,2581.1,0.38736]
[1727011817610,0.4036,2581.3,2581.1,0.38736]
[1727011819202,4.278,2581.3,2580.8,0.3734]
[1727011819399,3.2078,2580.9,2580.8,0.7608]
[1727011819608,3.2078,2580.9,2580.8,0.3874]
[1727011820511,3.5814,2580.9,2580.8,0.3874]
[1727011821905,3.5814,2580.9,2580.7,0.38742]
[1727011822410,3.5814,2580.9,2580.8,0.38741]
[1727011824003,3.5814,2580.9,2580.7,0.38742]
[1727011825309,3.5814,2580.9,2580.5,1.13195]
[1727011825508,3.96881,2580.9,2580.5,0.38745]
[1727011825704,3.2078,2580.6,2580.5,0.38745]
[1727011829207,3.1979,2580.6,2580.5,0.38745]
[1727011830398,3.1979,2580.6,2580.4,0.38747]
[1727011830599,1.1424,2580.5,2580.3,8.88748]
[1727011831002,1.1424,2580.5,2580.4,0.38747]
[1727011831912,3.1979,2580.6,2580.5,0.38746]
[1727011832315,0.3979,2580.8,2580.7,0.38743]
[1727011834114,0.3979,2580.8,2580.5,0.7841]
[1727011834302,0.3979,2580.8,2580.7,0.38743]
[1727011837414,0.78532,2580.8,2580.5,0.38745]
[1727011837616,3.2078,2580.6,2580.5,0.38745]
[1727011837916,3.2078,2580.6,2580.3,8.5]
[1727011838104,0.7485,2580.5,2580.4,0.38747]
[1727011839711,0.7485,2580.5,2579.8,4.56408]
[1727011839918,0.7485,2580.5,2580.2,0.3875]
[1727011839919,3.2078,2580.3,2580.2,0.3875]
[1727011842421,3.2078,2580.3,2580.1,0.38751]
[1727011842622,0.3922,2580.2,2580.1,0.38751]
[1727011843315,4.2682,2580.2,2580.0,0.38752]
[1727011843522,0.7879,2580.2,2580.1,0.38752]
[1727011844120,12.18515429,2580.2,2579.3,0.36]
[1727011844317,12.18515429,2580.2,2579.1,1.98016156]
[1727011844318,3.2078,2579.6,2579.2,0.764]
[1727011844518,0.7992,2579.5,2579.3,0.38763]
[1727011844915,0.7992,2579.5,2579.4,0.38762]
[1727011845513,3.2078,2579.6,2579.5,0.38761]
[1727011847017,3.2078,2579.6,2579.5,5.23344]
[1727011847415,3.2078,2579.6,2579.5,4.26441]
[1727011847817,3.2078,2579.6,2579.5,12.76441]
[1727011848022,3.2078,2579.6,2579.5,13.15391]
[1727011849232,3.2078,2579.6,2579.5,13.52581]
[1727011850125,3.2078,2579.6,2579.5,14.49484]
[1727011850324,3.6064,2580.1,2580.0,0.38753]
[1727011851327,3.6064,2580.1,2579.9,0.38754]
[1727011851826,3.9896,2580.1,2579.9,0.38754]
[1727011854320,3.9896,2580.1,2579.6,0.3905]
[1727011854526,4.37712,2580.1,2579.7,0.38757]
[1727011856430,3.2078,2579.8,2579.7,0.38757]
[1727011856735,3.2078,2579.8,2579.6,0.77809]
[1727011856937,0.3789,2579.7,2579.4,0.38762]
[1727011857127,1.1447,2579.7,2579.4,0.38762]
[1727011857334,1.1447,2579.7,2579.3,3.2718]
[1727011857531,1.1447,2579.7,2579.6,0.38759]
[1727011857738,1.1447,2579.7,2579.5,0.3876]
[1727011858636,1.1447,2579.7,2579.5,0.38761]
[1727011859338,1.1447,2579.7,2579.4,8.88762]
[1727011860034,1.1447,2579.7,2579.4,0.38762]
[1727011860242,3.2078,2579.6,2579.4,0.38762]
[1727011860441,3.2078,2579.6,2579.5,0.38761]
[1727011860645,0.7753,2579.7,2579.6,0.38759]
[1727011860939,0.3789,2579.7,2579.6,0.38759]
[1727011865044,0.3789,2579.7,2579.5,0.38759]
[1727011865234,3.5767,2579.6,2579.2,8.8684]
[1727011865430,4.3649,2579.6,2579.2,8.5]
[1727011865834,4.3649,2579.6,2579.0,3.2629]
[1727011866048,3.2078,2579.3,2579.1,0.38766]
[1727011866242,3.2078,2579.3,2578.7,4.4899]
[1727011866449,3.2078,2579.3,2578.8,12.1591]
[1727011866450,1.1663,2579.2,2578.8,12.1591]
[1727011866740,1.1663,2579.2,2579.1,0.38767]
[1727011866741,0.7485,2579.2,2579.1,0.38767]
[1727011867332,0.7485,2579.2,2579.0,0.38768]
[1727011867840,3.2078,2579.7,2579.6,0.38759]
[1727011868039,0.3968,2579.9,2579.8,0.38756]
[1727011868537,3.2078,2580.0,2579.9,0.38755]
[1727011868737,3.6046,2580.3,2580.2,0.3875]
[1727011868947,3.2078,2580.3,2580.2,0.3875]
[1727011869138,3.2078,2580.3,2580.2,8.8875]
[1727011869345,3.2078,2580.3,2580.2,9.2876]
[1727011873242,0.3832,2580.6,2580.5,0.38746]
[1727011873548,0.3936,2580.7,2580.6,0.38744]
[1727011873844,0.3936,2580.7,2580.2,13.07667]
[1727011873845,3.5766,2580.8,2580.7,0.38743]
[1727011880355,0.3688,2580.8,2580.7,0.38743]
[1727011880758,3.5766,2580.8,2580.7,0.38743]
[1727011882757,0.3688,2580.8,2580.7,0.38743]
[1727011883056,3.2078,2580.8,2580.7,0.38743]
[1727011883260,4.21899476,2581.2,2580.7,0.96858]
[1727011883456,3.2078,2581.2,2581.1,0.38737]
[1727011883654,3.612,2581.2,2581.1,0.38737]
[1727011886556,3.2078,2581.2,2581.1,0.38737]
[1727011886751,0.3897,2581.4,2581.3,0.38734]
[1727011887154,3.5783,2581.6,2581.5,0.38731]
[1727011887155,3.2078,2581.6,2581.5,0.38731]
[1727011888859,3.2078,2581.6,2581.4,0.76521]
[1727011889066,3.2078,2581.6,2581.4,0.38731]
[1727011889652,3.2078,2581.6,2581.5,0.38731]
[1727011890371,3.2078,2581.6,2581.4,0.38732]
[1727011891460,3.2078,2581.6,2581.3,0.38733]
[1727011891659,3.2078,2581.6,2581.3,2.88733]
[1727011891863,0.395,2581.5,2581.3,2.88733]
[1727011892067,0.3683,2581.4,2581.3,2.88733]
[1727011892253,0.7413,2581.4,2581.3,0.38734]
[1727011894255,0.7413,2581.4,2581.0,9.6734]
[1727011894462,3.2078,2581.3,2581.0,3.2855]
[1727011895065,3.2078,2581.3,2581.0,2.8893]
[1727011895371,3.2078,2581.3,2581.2,0.38735]
[1727011897667,0.7413,2581.4,2581.3,0.38734]
[1727011898064,0.373,2581.4,2581.3,0.38734]
[1727011900367,3.2078,2581.6,2581.5,0.38731]
[1727011901760,3.2078,2581.6,2581.3,0.38733]
[1727011901966,0.38731,2581.5,2581.2,0.38734]
[1727011902175,3.2078,2581.6,2581.2,0.38734]
[1727011902176,3.2078,2581.3,2581.2,0.38734]
[1727011902472,0.401,2581.4,2581.3,0.38734]
[1727011902861,4.2746,2581.4,2581.3,0.38734]
[1727011903471,4.66192,2581.4,2581.0,2.8893]
[1727011903666,3.5758,2581.3,2580.9,8.885]
[1727011903965,3.2078,2581.2,2581.0,0.38738]
[1727011904173,3.2078,2581.2,2581.1,0.38737]
[1727011907475,3.2078,2581.2,2581.0,0.38738]
[1727011907675,3.2078,2581.2,2580.9,0.385]
[1727011907972,3.59516,2581.2,2580.9,0.38739]
[1727011908177,0.38737,2581.1,2580.9,0.38739]
[1727011908374,0.3874,2581.0,2580.7,0.38742]
[1727011908577,3.2078,2580.8,2580.7,0.38742]
[1727011909080,3.59521,2580.8,2580.5,0.76115]
[1727011909377,0.3882,2580.7,2580.6,0.38744]
[1727011909567,0.3882,2580.7,2580.5,0.3737]
[1727011909968,0.3882,2580.7,2580.3,11.7786]
[1727011909969,0.3882,2580.7,2580.3,0.3897]
[1727011910165,0.3882,2580.7,2580.5,0.38745]
[1727011911372,0.3882,2580.7,2580.6,0.38744]
[1727011911871,0.3882,2580.7,2580.3,0.3897]
[1727011912478,0.3882,2580.7,2580.5,0.38745]
[1727011913177,0.3882,2580.7,2580.3,0.77718]
[1727011914174,3.2078,2580.8,2580.3,0.3897]
[1727011914471,2.03194353,2581.1,2580.8,0.38741]
[1727011914472,4.21899476,2581.1,2580.8,0.38741]
[1727011914667,4.21899476,2581.1,2580.9,0.7808]
[1727011914867,4.21899476,2581.1,2580.6,2.501]
[1727011915080,3.2078,2580.8,2580.6,0.38744]
[1727011915284,3.2078,2580.8,2580.7,8.5]
[1727011916876,7.65260473,2580.8,2580.3,2.501]
[1727011917076,3.2078,2580.5,2580.3,2.88849]
[1727011917274,4.22126873,2580.5,2580.3,2.88849]
[1727011917485,4.22126873,2580.5,2580.3,11.001]
[1727011917783,4.22126873,2580.5,2580.3,11.38849]
[1727011918486,4.22126873,2580.5,2580.3,11.001]
[1727011918985,4.22126873,2580.5,2580.3,11.38849]
[1727011919693,3.2078,2580.5,2580.3,11.38848]
[1727011919873,3.2078,2580.5,2580.3,11.001]
[1727011920185,3.2078,2580.5,2580.3,11.38848]
[1727011920576,3.2078,2580.5,2580.3,11.001]
[1727011920774,4.60872873,2580.5,2580.3,8.5]
[1727011921179,4.22126873,2580.5,2580.3,8.5]
[1727011921382,1.01346873,2580.4,2580.2,0.7887]
[1727011921983,1.01346873,2580.4,2580.2,0.3855]
[1727011922883,0.3858,2580.3,2580.2,0.3855]
[1727011923584,0.3858,2580.3,2579.8,2.88856]
[1727011923585,0.3875,2580.2,2579.8,2.88856]
[1727011923889,3.2078,2580.0,2579.8,2.88856]
[1727011924081,3.2078,2580.0,2579.9,0.38755]
[1727011924481,3.2078,2580.0,2579.9,0.77845]
[1727011924675,3.2078,2580.0,2579.9,0.3909]
[1727011925079,3.2078,2580.0,2579.8,11.38855]
[1727011925080,3.2078,2580.0,2579.8,8.5]
[1727011925284,0.4005,2579.9,2579.8,8.5]
[1727011926789,0.4005,2579.9,2579.6,0.7599]
[1727011926790,0.78805,2579.9,2579.6,0.7599]
[1727011926990,3.2078,2579.7,2579.6,1.14749]
[1727011927194,3.2078,2579.7,2579.6,0.7599]
[1727011927879,0.4005,2579.9,2579.6,1.14749]
[1727011928084,3.2078,2579.7,2579.6,1.14749]
[1727011928290,3.2078,2579.7,2579.6,0.7599]
[1727011930494,3.2078,2579.7,2579.5,11.7591]
[1727011930495,3.2078,2579.7,2579.5,8.5]
[1727011932400,7.0846,2579.7,2579.2,2.502]
[1727011932588,3.2078,2579.4,2579.1,0.7666]
[1727011932899,0.3937,2579.3,2579.1,9.2666]
[1727011934290,0.3937,2579.3,2579.0,3.27397]
[1727011934291,0.3937,2579.3,2579.0,0.3843]
[1727011934494,3.2078,2579.1,2579.0,0.3843]
[1727011934693,3.2078,2579.1,2578.9,0.38769]
[1727011934894,3.2078,2579.1,2578.8,8.5]
[1727011935198,3.2078,2579.1,2578.9,0.3877]
[1727011935584,3.2078,2579.1,2579.0,0.3706]
[1727011935790,3.2078,2579.1,2579.0,0.75828]
[1727011936292,3.2078,2579.1,2579.0,4.63588]
[1727011936599,3.2078,2579.4,2579.0,4.2482]
[1727011936794,3.2078,2579.4,2579.3,0.38764]
[1727011937890,3.2078,2579.4,2579.1,0.7441]
[1727011938091,3.2078,2579.4,2579.2,0.38765]
[1727011938400,3.2078,2579.4,2579.2,2.519]
[1727011939399,3.59543,2579.4,2579.0,0.75827]
[1727011939695,3.2078,2579.1,2579.0,0.3706]
[1727011939899,3.2078,2579.4,2579.2,0.38765]
[1727011940094,3.2078,2579.4,2579.3,0.76924]
[1727011940489,3.2078,2579.4,2579.3,4.64604]
[1727011941001,3.59531,2580.2,2579.7,0.38757]
[1727011941202,3.59531,2580.2,2579.3,13.16504]
[1727011941203,0.75433,2580.1,2579.8,0.7868]
[1727011941401,3.2078,2579.9,2579.8,0.7868]
[1727011941703,3.2078,2579.9,2579.8,9.67436]
[1727011942298,3.2078,2579.9,2579.8,12.19336]
[1727011945304,3.2078,2579.9,2579.8,11.8058]
[1727011945494,3.2078,2579.9,2579.8,8.8858]
[1727011945705,3.2078,2579.9,2579.8,8.5]
[1727011947008,0.38757,2579.8,2579.4,2.90662]
[1727011947204,3.2078,2579.6,2579.4,2.90662]
[1727011947501,3.1973,2579.6,2579.4,2.90662]
[1727011947704,0.4042,2579.5,2579.4,2.90662]
[1727011948093,3.1973,2579.6,2579.4,2.90662]
[1727011948293,3.1973,2579.6,2579.5,0.38761]
[1727011948498,3.1973,2579.6,2579.4,2.90661]
[1727011948710,0.3925,2579.7,2579.4,2.90661]
[1727011949211,3.2078,2579.6,2579.4,2.90661]
[1727011950299,3.2078,2579.6,2579.5,0.38761]
[1727011950504,0.38755,2579.9,2579.5,0.38761]
[1727011950505,0.3925,2579.8,2579.5,0.38761]
[1727011951112,3.2078,2579.6,2579.5,0.38761]
[1727011951313,0.3925,2579.8,2579.5,0.38761]
[1727011951519,3.5983,2579.9,2579.8,0.38756]
[1727011951520,3.2078,2579.9,2579.8,0.38756]
[1727011952106,3.2078,2579.9,2579.8,4.26356]
[1727011952912,3.2078,2579.9,2579.8,3.876]
[1727011953308,3.2078,2579.9,2579.8,0.38756]
[1727011953506,3.2078,2579.9,2579.3,9.85698]
[1727011953810,3.2078,2579.9,2579.7,0.38758]
[1727011954205,3.2078,2579.9,2579.3,9.85698]
[1727011954206,3.2078,2579.9,2579.6,2.519]
[1727011954415,3.2078,2579.9,2579.6,2.90659]
[1727011954416,0.3893,2579.8,2579.6,2.90659]
[1727011954909,0.3966,2579.7,2579.6,2.90659]
[1727011955812,0.3966,2579.7,2579.6,2.519]
[1727011957511,0.3966,2579.7,2579.5,2.518]
[1727011957711,0.3966,2579.7,2579.5,2.90561]
[1727011957905,3.2078,2579.6,2579.3,8.88764]
[1727011958108,3.2078,2579.6,2579.3,8.5]
[1727011958109,0.75572,2579.5,2579.3,8.5]
[1727011958407,0.75572,2579.5,2579.1,0.38766]
[1727011958408,0.3681,2579.5,2579.1,2.518]
[1727011958605,3.2078,2579.3,2579.0,1.14818]
[1727011958811,0.3674,2579.2,2579.0,8.88768]
[1727011959012,0.3681,2579.5,2579.1,7.0854]
[1727011959013,1.01259637,2579.5,2579.1,7.0854]
[1727011959215,3.5972,2579.9,2579.3,0.38764]
[1727011959404,3.5972,2579.9,2579.4,3.2719]
[1727011959716,3.5972,2579.9,2579.8,0.38756]
[1727011960208,0.3894,2579.9,2579.8,0.38756]
[1727011960409,0.3674,2580.1,2579.4,5.25193156]
[1727011960614,0.3674,2580.1,2580.0,0.38753]
[1727011960615,0.7469,2580.1,2580.0,0.38753]
[1727011961001,0.3795,2580.1,2580.0,0.38753]
[1727011961202,0.3795,2580.1,2580.0,1.54953]
[1727011961403,3.2078,2580.2,2580.1,0.38752]
[1727011961614,3.2078,2580.2,2580.0,1.162]
[1727011961809,3.2078,2580.2,2579.9,2.518]
[1727011961810,4.22039637,2580.2,2579.9,2.518]
[1727011962012,4.22039637,2580.2,2579.9,2.90555]
[1727011962203,3.2078,2580.2,2580.0,0.38753]
[1727011962607,4.22039637,2580.2,2580.0,0.38753]
[1727011963003,4.22039637,2580.2,2580.0,2.90553]
[1727011964610,4.22039637,2580.2,2580.1,0.38752]
[1727011964813,4.22039637,2580.2,2580.0,2.90552]
[1727011965012,4.21129637,2580.2,2580.0,2.90552]
[1727011967418,4.21129637,2580.2,2579.7,1.1735]
[1727011967612,5.1155831,2579.8,2579.4,4.48962]
[1727011967818,5.1155831,2579.8,2579.4,0.38762]
[1727011967819,1.01365008,2579.6,2579.4,0.38762]
[1727011968217,1.01365008,2579.6,2579.5,0.38761]
[1727011969613,4.89045008,2579.6,2579.1,1.01099156]
[1727011969922,4.22152143,2579.3,2579.1,0.38766]
[1727011970124,1.80872143,2579.2,2579.1,0.38766]
[1727011970313,0.795,2579.2,2579.1,0.38766]